[Event "Titled Tuesday Blitz August 22 Late 2023"]
[White "Papasimakopoulos, Alexandros"]
[Black "Sivakumar, Shaaketh"]
[WhiteFideId "4244125"]
[BlackFideId "30940176"]
[WhiteElo "2702"]
[BlackElo "2536"]
[Result "1-0"]
[Round "6"]
[TimeControl "180+1"]
[Date "2023.08.22"]
[WhiteClock "0:00:50"]
[BlackClock "0:00:00"]
[Board "58"]

1. d4 {[%clk 0:03:00]}  e6 {[%clk 0:03:00]} 2. c4 {[%clk 0:03:00]}  b6 {[%clk 0:02:46]} 3. e4 {[%clk 0:03:00]}  Bb4+ {[%clk 0:02:43]} 4. Bd2 {[%clk 0:03:00]}  Bxd2+ {[%clk 0:02:41]} 5. Qxd2 {[%clk 0:03:01]}  d5 {[%clk 0:02:41]} 6. Bd3 {[%clk 0:02:56]}  Ba6 {[%clk 0:02:38]} 7. b3 {[%clk 0:02:51]}  Ne7 {[%clk 0:02:16]} 8. Nf3 {[%clk 0:02:50]}  Nbc6 {[%clk 0:02:08]} 9. Nc3 {[%clk 0:02:43]}  dxc4 {[%clk 0:01:51]} 10. Bxc4 {[%clk 0:02:44]}  Bxc4 {[%clk 0:01:50]} 11. bxc4 {[%clk 0:02:45]}  O-O {[%clk 0:01:46]} 12. O-O {[%clk 0:02:43]}  Ng6 {[%clk 0:01:44]} 13. Qe3 {[%clk 0:02:32]}  Na5 {[%clk 0:01:40]} 14. Nd2 {[%clk 0:02:32]}  e5 {[%clk 0:01:40]} 15. d5 {[%clk 0:02:29]}  Qe7 {[%clk 0:01:41]} 16. Rab1 {[%clk 0:02:17]}  Nf4 {[%clk 0:01:36]} 17. g3 {[%clk 0:02:14]}  Ng6 {[%clk 0:01:31]} 18. c5 {[%clk 0:02:15]}  Nb7 {[%clk 0:01:25]} 19. Na4 {[%clk 0:02:09]}  f5 {[%clk 0:01:21]} 20. exf5 {[%clk 0:02:08]}  Rxf5 {[%clk 0:01:21]} 21. Qe4 {[%clk 0:02:06]}  Raf8 {[%clk 0:01:17]} 22. Nc4 {[%clk 0:02:02]}  Nxc5 {[%clk 0:01:15]} 23. Nxc5 {[%clk 0:02:01]}  Qxc5 {[%clk 0:01:16]} 24. Ne3 {[%clk 0:02:02]}  R5f7 {[%clk 0:01:13]} 25. Rbc1 {[%clk 0:02:01]}  Qd4 {[%clk 0:01:12]} 26. Qc2 {[%clk 0:01:55]}  Ne7 {[%clk 0:00:55]} 27. Rcd1 {[%clk 0:01:54]}  Qb4 {[%clk 0:00:49]} 28. Qxc7 {[%clk 0:01:51]}  Nxd5 {[%clk 0:00:49]} 29. Qxe5 {[%clk 0:01:51]}  Nxe3 {[%clk 0:00:50]} 30. Qxe3 {[%clk 0:01:52]}  Qa4 {[%clk 0:00:49]} 31. Qe2 {[%clk 0:01:50]}  Kh8 {[%clk 0:00:49]} 32. f4 {[%clk 0:01:48]}  b5 {[%clk 0:00:48]} 33. Rd5 {[%clk 0:01:47]}  b4 {[%clk 0:00:47]} 34. Rfd1 {[%clk 0:01:46]}  Qc6 {[%clk 0:00:38]} 35. Qe4 {[%clk 0:01:44]}  Qb6+ {[%clk 0:00:38]} 36. Qd4 {[%clk 0:01:44]}  Qxd4+ {[%clk 0:00:36]} 37. R1xd4 {[%clk 0:01:45]}  Rb7 {[%clk 0:00:36]} 38. Ra5 {[%clk 0:01:41]}  h6 {[%clk 0:00:35]} 39. Ra4 {[%clk 0:01:39]}  Rfb8 {[%clk 0:00:35]} 40. Kg2 {[%clk 0:01:40]}  Rc7 {[%clk 0:00:33]} 41. Kh3 {[%clk 0:01:36]}  b3 {[%clk 0:00:31]} 42. axb3 {[%clk 0:01:32]}  Rxb3 {[%clk 0:00:32]} 43. Rac4 {[%clk 0:01:32]}  Rxc4 {[%clk 0:00:31]} 44. Rxc4 {[%clk 0:01:33]}  Rb7 {[%clk 0:00:31]} 45. Rc8+ {[%clk 0:01:31]}  Kh7 {[%clk 0:00:31]} 46. Kh4 {[%clk 0:01:32]}  Kg6 {[%clk 0:00:30]} 47. Rc6+ {[%clk 0:01:29]}  Kf7 {[%clk 0:00:30]} 48. Ra6 {[%clk 0:01:29]}  Rc7 {[%clk 0:00:29]} 49. h3 {[%clk 0:01:28]}  Rb7 {[%clk 0:00:29]} 50. g4 {[%clk 0:01:27]}  Rc7 {[%clk 0:00:29]} 51. f5 {[%clk 0:01:28]}  Rb7 {[%clk 0:00:29]} 52. Kh5 {[%clk 0:01:28]}  Kg8 {[%clk 0:00:28]} 53. h4 {[%clk 0:01:28]}  Kf7 {[%clk 0:00:24]} 54. Rc6 {[%clk 0:01:25]}  a5 {[%clk 0:00:23]} 55. Ra6 {[%clk 0:01:25]}  Rb5 {[%clk 0:00:22]} 56. Ra7+ {[%clk 0:01:25]}  Kf6 {[%clk 0:00:22]} 57. Ra6+ {[%clk 0:01:21]}  Kf7 {[%clk 0:00:22]} 58. Ra8 {[%clk 0:01:06]}  Kf6 {[%clk 0:00:21]} 59. Ra7 {[%clk 0:01:01]}  Rc5 {[%clk 0:00:20]} 60. Rb7 {[%clk 0:00:50]}  Rd5 {[%clk 0:00:19]} 61. Rc7 {[%clk 0:00:48]}  Rb5 {[%clk 0:00:19]} 62. Rc8 {[%clk 0:00:48]}  a4 {[%clk 0:00:19]} 63. Ra8 {[%clk 0:00:47]}  Rb4 {[%clk 0:00:19]} 64. Ra6+ {[%clk 0:00:47]}  Kf7 {[%clk 0:00:18]} 65. g5 {[%clk 0:00:47]}  hxg5 {[%clk 0:00:19]} 66. hxg5 {[%clk 0:00:48]}  Rf4 {[%clk 0:00:19]} 67. Ra7+ {[%clk 0:00:48]}  Kf8 {[%clk 0:00:19]} 68. Kg6 {[%clk 0:00:48]}  Rf3 {[%clk 0:00:09]} 69. Rf7+ {[%clk 0:00:47]}  Ke8 {[%clk 0:00:09]} 70. Rxg7 {[%clk 0:00:47]}  a3 {[%clk 0:00:09]} 71. Ra7 {[%clk 0:00:48]}  Rb3 {[%clk 0:00:09]} 72. f6 {[%clk 0:00:48]}  Rc3 {[%clk 0:00:08]} 73. Kg7 {[%clk 0:00:48]}  Rf3 {[%clk 0:00:04]} 74. g6 {[%clk 0:00:48]}  a2 {[%clk 0:00:03]} 75. f7+ {[%clk 0:00:48]}  Kd8 {[%clk 0:00:03]} 76. f8=Q+ {[%clk 0:00:49]}  Rxf8 {[%clk 0:00:02]} 77. Kxf8 {[%clk 0:00:49]}  a1=Q {[%clk 0:00:00]} 78. Rxa1 {[%clk 0:00:50]} 1-0


[Site "https://www.chess.com"]

[Event "Titled Tuesday Blitz August 22 Late 2023"]
[White "Ozkan, Taha"]
[Black "Cuenca Jimenez, Jose Fernando"]
[WhiteFideId "34577173"]
[BlackFideId "2255570"]
[WhiteElo "2526"]
[BlackElo "2683"]
[Result "1/2-1/2"]
[Round "6"]
[TimeControl "180+1"]
[Date "2023.08.22"]
[WhiteClock "0:00:12"]
[BlackClock "0:00:08"]
[Board "65"]

1. d4 {[%clk 0:03:00]}  Nf6 {[%clk 0:02:59]} 2. c4 {[%clk 0:03:00]}  g6 {[%clk 0:02:59]} 3. Nc3 {[%clk 0:03:00]}  Bg7 {[%clk 0:02:59]} 4. e4 {[%clk 0:02:59]}  d6 {[%clk 0:03:00]} 5. Nf3 {[%clk 0:03:00]}  O-O {[%clk 0:02:59]} 6. Be2 {[%clk 0:03:00]}  Bg4 {[%clk 0:03:00]} 7. Be3 {[%clk 0:02:58]}  Nfd7 {[%clk 0:03:00]} 8. Nd2 {[%clk 0:02:56]}  Bxe2 {[%clk 0:02:58]} 9. Qxe2 {[%clk 0:02:57]}  Nc6 {[%clk 0:02:51]} 10. Nf3 {[%clk 0:02:46]}  e5 {[%clk 0:02:49]} 11. d5 {[%clk 0:02:46]}  Nd4 {[%clk 0:02:45]} 12. Qd1 {[%clk 0:02:44]}  Nxf3+ {[%clk 0:02:43]} 13. Qxf3 {[%clk 0:02:45]}  f5 {[%clk 0:02:43]} 14. exf5 {[%clk 0:02:44]}  gxf5 {[%clk 0:02:42]} 15. O-O {[%clk 0:02:44]}  Qh4 {[%clk 0:02:29]} 16. Qg3 {[%clk 0:02:38]}  Qxc4 {[%clk 0:02:22]} 17. Bh6 {[%clk 0:02:34]}  Rf7 {[%clk 0:02:15]} 18. Rac1 {[%clk 0:02:30]}  a6 {[%clk 0:02:05]} 19. Qg5 {[%clk 0:02:22]}  Qg4 {[%clk 0:01:47]} 20. Qxg4 {[%clk 0:02:19]}  fxg4 {[%clk 0:01:48]} 21. Bxg7 {[%clk 0:02:20]}  Kxg7 {[%clk 0:01:48]} 22. Ne4 {[%clk 0:01:44]}  Nb6 {[%clk 0:01:37]} 23. Rfd1 {[%clk 0:01:43]}  Kg6 {[%clk 0:01:34]} 24. h3 {[%clk 0:01:42]}  gxh3 {[%clk 0:01:30]} 25. Rc3 {[%clk 0:01:38]}  h6 {[%clk 0:01:20]} 26. Rg3+ {[%clk 0:01:36]}  Kh7 {[%clk 0:01:20]} 27. Rxh3 {[%clk 0:01:35]}  Rg8 {[%clk 0:01:19]} 28. Rb3 {[%clk 0:01:27]}  Rg6 {[%clk 0:01:13]} 29. a4 {[%clk 0:01:24]}  Nxa4 {[%clk 0:00:43]} 30. Rxb7 {[%clk 0:01:25]}  Nb6 {[%clk 0:00:42]} 31. b3 {[%clk 0:01:23]}  Kg7 {[%clk 0:00:42]} 32. Rd3 {[%clk 0:01:19]}  a5 {[%clk 0:00:35]} 33. Nc3 {[%clk 0:01:13]}  Rg4 {[%clk 0:00:31]} 34. Nb5 {[%clk 0:01:10]}  Rb4 {[%clk 0:00:21]} 35. Rg3+ {[%clk 0:01:11]}  Kh7 {[%clk 0:00:18]} 36. Nxd6 {[%clk 0:01:09]}  Rd7 {[%clk 0:00:14]} 37. Nf5 {[%clk 0:01:01]}  Nxd5 {[%clk 0:00:13]} 38. Ra7 {[%clk 0:00:59]}  Rf4 {[%clk 0:00:11]} 39. Ne3 {[%clk 0:00:57]}  Nxe3 {[%clk 0:00:11]} 40. Rxe3 {[%clk 0:00:56]}  Rh4 {[%clk 0:00:08]} 41. g3 {[%clk 0:00:55]}  Rb4 {[%clk 0:00:05]} 42. Rxa5 {[%clk 0:00:54]}  Re7 {[%clk 0:00:04]} 43. Raxe5 {[%clk 0:00:42]}  Rxe5 {[%clk 0:00:05]} 44. Rxe5 {[%clk 0:00:43]}  Rxb3 {[%clk 0:00:05]} 45. Re7+ {[%clk 0:00:44]}  Kg6 {[%clk 0:00:06]} 46. Rxc7 {[%clk 0:00:45]}  Rb1+ {[%clk 0:00:07]} 47. Kg2 {[%clk 0:00:45]}  Rb6 {[%clk 0:00:08]} 48. Rc3 {[%clk 0:00:45]}  Rd6 {[%clk 0:00:08]} 49. Re3 {[%clk 0:00:46]}  Rc6 {[%clk 0:00:08]} 50. Re5 {[%clk 0:00:46]}  Kf6 {[%clk 0:00:08]} 51. f4 {[%clk 0:00:46]}  Kg6 {[%clk 0:00:09]} 52. Kh3 {[%clk 0:00:46]}  Rc1 {[%clk 0:00:09]} 53. Re6+ {[%clk 0:00:45]}  Kf5 {[%clk 0:00:07]} 54. Re5+ {[%clk 0:00:42]}  Kf6 {[%clk 0:00:06]} 55. Kg4 {[%clk 0:00:42]}  Rc6 {[%clk 0:00:04]} 56. Kh5 {[%clk 0:00:40]}  Rc3 {[%clk 0:00:03]} 57. Kg4 {[%clk 0:00:37]}  Rc6 {[%clk 0:00:03]} 58. Rh5 {[%clk 0:00:36]}  Kg6 {[%clk 0:00:03]} 59. Ra5 {[%clk 0:00:35]}  Kg7 {[%clk 0:00:03]} 60. Re5 {[%clk 0:00:35]}  Kg6 {[%clk 0:00:03]} 61. f5+ {[%clk 0:00:29]}  Kf6 {[%clk 0:00:03]} 62. Re6+ {[%clk 0:00:27]}  Rxe6 {[%clk 0:00:03]} 63. fxe6 {[%clk 0:00:28]}  Kxe6 {[%clk 0:00:04]} 64. Kh5 {[%clk 0:00:28]}  Kf5 {[%clk 0:00:02]} 65. Kh4 {[%clk 0:00:13]}  Kg6 {[%clk 0:00:02]} 66. Kg4 {[%clk 0:00:13]}  Kf6 {[%clk 0:00:03]} 67. Kh5 {[%clk 0:00:14]}  Kg7 {[%clk 0:00:04]} 68. g4 {[%clk 0:00:13]}  Kh7 {[%clk 0:00:04]} 69. Kh4 {[%clk 0:00:14]}  Kg6 {[%clk 0:00:05]} 70. Kh3 {[%clk 0:00:09]}  Kg5 {[%clk 0:00:05]} 71. Kg3 {[%clk 0:00:10]}  Kg6 {[%clk 0:00:06]} 72. Kh4 {[%clk 0:00:10]}  Kf6 {[%clk 0:00:07]} 73. Kh5 {[%clk 0:00:11]}  Kg7 {[%clk 0:00:07]} 74. g5 {[%clk 0:00:11]}  hxg5 {[%clk 0:00:08]} 75. Kxg5 {[%clk 0:00:12]} 1/2-1/2


[Site "https://www.chess.com"]

[Event "Titled Tuesday Blitz August 22 Late 2023"]
[White "arenal72"]
[Black "Alex_Sahakyan2006"]
[WhiteElo "2526"]
[BlackElo "2682"]
[Result "0-1"]
[Round "6"]
[TimeControl "180+1"]
[Date "2023.08.22"]
[WhiteClock "0:02:01"]
[BlackClock "0:01:51"]
[Board "66"]

1. e4 {[%clk 0:03:00]}  c5 {[%clk 0:02:58]} 2. Nf3 {[%clk 0:02:56]}  Nc6 {[%clk 0:02:58]} 3. d4 {[%clk 0:02:55]}  cxd4 {[%clk 0:02:59]} 4. Nxd4 {[%clk 0:02:55]}  g6 {[%clk 0:02:59]} 5. Nc3 {[%clk 0:02:50]}  Bg7 {[%clk 0:02:58]} 6. Be3 {[%clk 0:02:49]}  Nf6 {[%clk 0:02:56]} 7. Be2 {[%clk 0:02:48]}  O-O {[%clk 0:02:54]} 8. Qd2 {[%clk 0:02:47]}  d5 {[%clk 0:02:48]} 9. Nxc6 {[%clk 0:02:41]}  bxc6 {[%clk 0:02:47]} 10. O-O-O {[%clk 0:02:41]}  Rb8 {[%clk 0:02:30]} 11. e5 {[%clk 0:02:26]}  Ng4 {[%clk 0:02:20]} 12. f4 {[%clk 0:02:19]}  Nxe3 {[%clk 0:02:16]} 13. Qxe3 {[%clk 0:02:20]}  Qa5 {[%clk 0:02:17]} 14. h4 {[%clk 0:02:13]}  Qb4 {[%clk 0:02:08]} 15. b3 {[%clk 0:02:12]}  Qa3+ {[%clk 0:01:59]} 16. Kb1 {[%clk 0:02:12]}  Bf5 {[%clk 0:01:59]} 17. g4 {[%clk 0:02:07]}  Rxb3+ {[%clk 0:01:53]} 18. axb3 {[%clk 0:02:07]}  Qxb3+ {[%clk 0:01:54]} 19. Ka1 {[%clk 0:02:08]}  Qa3+ {[%clk 0:01:54]} 20. Kb1 {[%clk 0:02:01]}  Rb8+ {[%clk 0:01:51]} 0-1


[Site "https://www.chess.com"]

[Event "Titled Tuesday Blitz August 22 Late 2023"]
[White "Kaplan, Avi Harrison"]
[Black "Tatarinov, Dmitry"]
[WhiteFideId "30934559"]
[BlackFideId "24160067"]
[WhiteElo "2525"]
[BlackElo "2677"]
[Result "0-1"]
[Round "6"]
[TimeControl "180+1"]
[Date "2023.08.22"]
[WhiteClock "0:00:11"]
[BlackClock "0:00:38"]
[Board "67"]

1. g3 {[%clk 0:03:00]}  d5 {[%clk 0:02:53]} 2. Bg2 {[%clk 0:03:01]}  c6 {[%clk 0:02:53]} 3. e3 {[%clk 0:02:53]}  Nf6 {[%clk 0:02:54]} 4. Ne2 {[%clk 0:02:53]}  h5 {[%clk 0:02:52]} 5. h3 {[%clk 0:02:52]}  e5 {[%clk 0:02:52]} 6. b3 {[%clk 0:02:52]}  Bd6 {[%clk 0:02:52]} 7. Bb2 {[%clk 0:02:52]}  Nbd7 {[%clk 0:02:53]} 8. c4 {[%clk 0:02:52]}  e4 {[%clk 0:02:50]} 9. d3 {[%clk 0:02:32]}  Ne5 {[%clk 0:02:47]} 10. dxe4 {[%clk 0:02:32]}  dxe4 {[%clk 0:02:45]} 11. O-O {[%clk 0:02:22]}  Nf3+ {[%clk 0:02:43]} 12. Kh1 {[%clk 0:02:20]}  Qe7 {[%clk 0:02:36]} 13. Nbc3 {[%clk 0:02:14]}  Bg4 {[%clk 0:02:27]} 14. Nd4 {[%clk 0:01:44]}  Nxd4 {[%clk 0:02:24]} 15. Qxd4 {[%clk 0:01:44]}  Be5 {[%clk 0:02:19]} 16. Qd2 {[%clk 0:01:25]}  Rd8 {[%clk 0:02:19]} 17. Qc2 {[%clk 0:01:26]}  Bf3 {[%clk 0:02:13]} 18. Bxf3 {[%clk 0:01:11]}  exf3 {[%clk 0:02:13]} 19. Rad1 {[%clk 0:01:12]}  Rxd1 {[%clk 0:02:09]} 20. Qxd1 {[%clk 0:01:07]}  h4 {[%clk 0:01:58]} 21. g4 {[%clk 0:01:03]}  Bxc3 {[%clk 0:01:55]} 22. Bxc3 {[%clk 0:01:00]}  Ne4 {[%clk 0:01:54]} 23. Bxg7 {[%clk 0:00:55]}  Rg8 {[%clk 0:01:52]} 24. Bb2 {[%clk 0:00:54]}  Ng5 {[%clk 0:01:41]} 25. e4 {[%clk 0:00:46]}  Rg6 {[%clk 0:01:34]} 26. e5 {[%clk 0:00:45]}  Qd7 {[%clk 0:01:24]} 27. Qxd7+ {[%clk 0:00:39]}  Kxd7 {[%clk 0:01:25]} 28. Rd1+ {[%clk 0:00:37]}  Ke8 {[%clk 0:01:24]} 29. Kh2 {[%clk 0:00:38]}  c5 {[%clk 0:01:19]} 30. Bc1 {[%clk 0:00:35]}  Ne4 {[%clk 0:01:16]} 31. Rd3 {[%clk 0:00:36]}  Ra6 {[%clk 0:00:59]} 32. a4 {[%clk 0:00:33]}  Nxf2 {[%clk 0:00:58]} 33. Rxf3 {[%clk 0:00:30]}  Ne4 {[%clk 0:00:58]} 34. Re3 {[%clk 0:00:26]}  Ng5 {[%clk 0:00:55]} 35. Rd3 {[%clk 0:00:26]}  Ne6 {[%clk 0:00:53]} 36. Be3 {[%clk 0:00:26]}  Rc6 {[%clk 0:00:45]} 37. Bf2 {[%clk 0:00:26]}  Nf4 {[%clk 0:00:39]} 38. Rd2 {[%clk 0:00:26]}  Ng6 {[%clk 0:00:39]} 39. Kg2 {[%clk 0:00:22]}  b6 {[%clk 0:00:38]} 40. Be1 {[%clk 0:00:16]}  Re6 {[%clk 0:00:38]} 41. Re2 {[%clk 0:00:15]}  Nf4+ {[%clk 0:00:38]} 42. Kf3 {[%clk 0:00:16]}  Nxe2 {[%clk 0:00:39]} 43. Kxe2 {[%clk 0:00:16]}  Rxe5+ {[%clk 0:00:39]} 44. Kd2 {[%clk 0:00:17]}  Re6 {[%clk 0:00:38]} 45. Bxh4 {[%clk 0:00:17]}  Rh6 {[%clk 0:00:38]} 46. Bg3 {[%clk 0:00:17]}  Rxh3 {[%clk 0:00:39]} 47. Bb8 {[%clk 0:00:17]}  Rxb3 {[%clk 0:00:39]} 48. Bxa7 {[%clk 0:00:18]}  Kd7 {[%clk 0:00:40]} 49. Kc2 {[%clk 0:00:18]}  Rb4 {[%clk 0:00:40]} 50. Kc3 {[%clk 0:00:11]}  Kc6 {[%clk 0:00:40]} 51. a5 {[%clk 0:00:12]}  bxa5 {[%clk 0:00:40]} 52. g5 {[%clk 0:00:12]}  a4 {[%clk 0:00:40]} 53. g6 {[%clk 0:00:11]}  fxg6 {[%clk 0:00:38]} 54. Bb8 {[%clk 0:00:11]} 0-1


[Site "https://www.chess.com"]

[Event "Titled Tuesday Blitz August 22 Late 2023"]
[White "szachmistrz2500"]
[Black "Hjartarson, Johann"]
[BlackFideId "2300044"]
[WhiteElo "2522"]
[BlackElo "2675"]
[Result "0-1"]
[Round "6"]
[TimeControl "180+1"]
[Date "2023.08.22"]
[WhiteClock "0:00:01"]
[BlackClock "0:00:53"]
[Board "69"]

1. Nf3 {[%clk 0:03:00]}  Nf6 {[%clk 0:02:58]} 2. g3 {[%clk 0:03:00]}  b5 {[%clk 0:02:58]} 3. Bg2 {[%clk 0:02:59]}  Bb7 {[%clk 0:02:58]} 4. O-O {[%clk 0:02:59]}  e6 {[%clk 0:02:58]} 5. d3 {[%clk 0:02:59]}  Be7 {[%clk 0:02:57]} 6. e4 {[%clk 0:02:59]}  d6 {[%clk 0:02:56]} 7. Qe2 {[%clk 0:02:58]}  Nbd7 {[%clk 0:02:54]} 8. Nbd2 {[%clk 0:02:56]}  c5 {[%clk 0:02:53]} 9. Re1 {[%clk 0:02:55]}  O-O {[%clk 0:02:52]} 10. h4 {[%clk 0:02:53]}  Qc7 {[%clk 0:02:44]} 11. Nf1 {[%clk 0:02:52]}  Ne5 {[%clk 0:02:40]} 12. N3h2 {[%clk 0:02:36]}  Rfe8 {[%clk 0:02:33]} 13. f4 {[%clk 0:02:34]}  Nc6 {[%clk 0:02:32]} 14. g4 {[%clk 0:02:29]}  Bf8 {[%clk 0:02:25]} 15. g5 {[%clk 0:02:29]}  Nd7 {[%clk 0:02:24]} 16. h5 {[%clk 0:02:27]}  f5 {[%clk 0:02:14]} 17. Ng3 {[%clk 0:01:49]}  g6 {[%clk 0:02:08]} 18. Be3 {[%clk 0:01:45]}  Bg7 {[%clk 0:02:06]} 19. Rab1 {[%clk 0:01:42]}  b4 {[%clk 0:01:57]} 20. Nf3 {[%clk 0:01:35]}  a5 {[%clk 0:01:52]} 21. Kf2 {[%clk 0:01:32]}  a4 {[%clk 0:01:50]} 22. Rh1 {[%clk 0:01:30]}  e5 {[%clk 0:01:39]} 23. hxg6 {[%clk 0:01:27]}  hxg6 {[%clk 0:01:38]} 24. Nh4 {[%clk 0:01:26]}  exf4 {[%clk 0:01:35]} 25. Bxf4 {[%clk 0:01:22]}  Nd4 {[%clk 0:01:24]} 26. Qd1 {[%clk 0:01:18]}  Ne5 {[%clk 0:01:23]} 27. Bxe5 {[%clk 0:01:12]}  Bxe5 {[%clk 0:01:18]} 28. Nxg6 {[%clk 0:01:12]}  Qg7 {[%clk 0:01:12]} 29. exf5 {[%clk 0:00:53]}  Bxg3+ {[%clk 0:01:09]} 30. Kxg3 {[%clk 0:00:42]}  Nxf5+ {[%clk 0:01:09]} 31. Kf2 {[%clk 0:00:42]}  Bxg2 {[%clk 0:01:06]} 32. Rh8+ {[%clk 0:00:37]}  Kf7 {[%clk 0:01:04]} 33. Qh5 {[%clk 0:00:34]}  Qxg6 {[%clk 0:01:00]} 34. Rh7+ {[%clk 0:00:31]}  Ng7 {[%clk 0:01:00]} 35. Qxg6+ {[%clk 0:00:15]}  Kxg6 {[%clk 0:00:59]} 36. Rh6+ {[%clk 0:00:15]}  Kxg5 {[%clk 0:00:59]} 37. Rxd6 {[%clk 0:00:15]}  Nf5 {[%clk 0:00:58]} 38. Rd7 {[%clk 0:00:12]}  Bc6 {[%clk 0:00:56]} 39. Rc7 {[%clk 0:00:11]}  Re6 {[%clk 0:00:55]} 40. Rg1+ {[%clk 0:00:11]}  Kf6 {[%clk 0:00:55]} 41. Rh1 {[%clk 0:00:01]}  Bxh1 {[%clk 0:00:53]} 0-1


[Site "https://www.chess.com"]

[Event "Titled Tuesday Blitz August 22 Late 2023"]
[White "Annaberdiyev, Meylis"]
[Black "Geivondian, Arman"]
[WhiteFideId "14000563"]
[BlackFideId "24102032"]
[WhiteElo "2672"]
[BlackElo "2515"]
[Result "0-1"]
[Round "6"]
[TimeControl "180+1"]
[Date "2023.08.22"]
[WhiteClock "0:00:00"]
[BlackClock "0:00:22"]
[Board "70"]

1. e4 {[%clk 0:03:00]}  c6 {[%clk 0:02:59]} 2. d4 {[%clk 0:02:59]}  d5 {[%clk 0:02:59]} 3. e5 {[%clk 0:03:00]}  Bf5 {[%clk 0:02:58]} 4. Nf3 {[%clk 0:02:58]}  e6 {[%clk 0:02:58]} 5. c3 {[%clk 0:02:54]}  Nd7 {[%clk 0:02:58]} 6. Be2 {[%clk 0:02:54]}  h6 {[%clk 0:02:57]} 7. O-O {[%clk 0:02:54]}  Ne7 {[%clk 0:02:57]} 8. Na3 {[%clk 0:02:55]}  g5 {[%clk 0:02:58]} 9. Nc2 {[%clk 0:02:55]}  Bg7 {[%clk 0:02:58]} 10. Ne3 {[%clk 0:02:54]}  Bg6 {[%clk 0:02:58]} 11. Bd3 {[%clk 0:02:49]}  Qc7 {[%clk 0:02:58]} 12. b3 {[%clk 0:02:45]}  O-O-O {[%clk 0:02:52]} 13. Ba3 {[%clk 0:02:45]}  Nb6 {[%clk 0:02:47]} 14. Bd6 {[%clk 0:02:37]}  Rxd6 {[%clk 0:02:46]} 15. exd6 {[%clk 0:02:37]}  Qxd6 {[%clk 0:02:47]} 16. Re1 {[%clk 0:02:20]}  Nd7 {[%clk 0:02:43]} 17. b4 {[%clk 0:02:10]}  e5 {[%clk 0:02:38]} 18. Bxg6 {[%clk 0:02:04]}  Nxg6 {[%clk 0:02:38]} 19. Nf5 {[%clk 0:02:04]}  Qf6 {[%clk 0:02:34]} 20. Nxg7 {[%clk 0:02:03]}  Qxg7 {[%clk 0:02:29]} 21. dxe5 {[%clk 0:02:01]}  Nf4 {[%clk 0:02:27]} 22. Qd4 {[%clk 0:01:57]}  b6 {[%clk 0:02:18]} 23. g3 {[%clk 0:01:51]}  Ne6 {[%clk 0:02:18]} 24. Qd3 {[%clk 0:01:49]}  g4 {[%clk 0:02:15]} 25. Nd4 {[%clk 0:01:46]}  Kb7 {[%clk 0:02:08]} 26. Nf5 {[%clk 0:01:40]}  Qg6 {[%clk 0:01:52]} 27. Nd6+ {[%clk 0:01:39]}  Ka8 {[%clk 0:01:52]} 28. Qa6 {[%clk 0:00:55]}  Rb8 {[%clk 0:01:51]} 29. a4 {[%clk 0:00:55]}  Ng5 {[%clk 0:01:49]} 30. a5 {[%clk 0:00:51]}  Nf3+ {[%clk 0:01:49]} 31. Kh1 {[%clk 0:00:46]}  Qh5 {[%clk 0:01:31]} 32. h4 {[%clk 0:00:46]}  Nxh4 {[%clk 0:01:31]} 33. gxh4 {[%clk 0:00:43]}  Qxh4+ {[%clk 0:01:32]} 34. Kg1 {[%clk 0:00:42]}  g3 {[%clk 0:01:32]} 35. Kf1 {[%clk 0:00:16]}  gxf2 {[%clk 0:01:26]} 36. Reb1 {[%clk 0:00:15]}  Qh1+ {[%clk 0:01:06]} 37. Kxf2 {[%clk 0:00:16]}  Qh2+ {[%clk 0:01:05]} 38. Kf1 {[%clk 0:00:16]}  Qf4+ {[%clk 0:00:57]} 39. Ke1 {[%clk 0:00:12]}  Qxe5+ {[%clk 0:00:58]} 40. Kd2 {[%clk 0:00:10]}  Qxd6 {[%clk 0:00:44]} 41. axb6 {[%clk 0:00:10]}  Rb7 {[%clk 0:00:43]} 42. Rg1 {[%clk 0:00:07]}  Qh2+ {[%clk 0:00:40]} 43. Qe2 {[%clk 0:00:06]}  Qxe2+ {[%clk 0:00:30]} 44. Kxe2 {[%clk 0:00:06]}  Rxb6 {[%clk 0:00:22]} 45. Rg7 {[%clk 0:00:05]}  Ne5 {[%clk 0:00:21]} 46. Rh7 {[%clk 0:00:02]}  Rb8 {[%clk 0:00:21]} 47. Rxh6 {[%clk 0:00:02]}  Re8 {[%clk 0:00:22]} 48. Kd2 {[%clk 0:00:01]}  Nc4+ {[%clk 0:00:22]} 49. Kd3 {[%clk 0:00:00]}  Kb7 {[%clk 0:00:22]} 0-1


[Site "https://www.chess.com"]

[Event "Titled Tuesday Blitz August 22 Late 2023"]
[White "Mamedov, Edgar"]
[Black "Diano, Eden"]
[WhiteFideId "13739980"]
[BlackFideId "5203708"]
[WhiteElo "2670"]
[BlackElo "2514"]
[Result "1-0"]
[Round "6"]
[TimeControl "180+1"]
[Date "2023.08.22"]
[WhiteClock "0:02:31"]
[BlackClock "0:01:56"]
[Board "71"]

1. d4 {[%clk 0:03:00]}  d5 {[%clk 0:02:59]} 2. Nf3 {[%clk 0:03:01]}  Nf6 {[%clk 0:02:59]} 3. c4 {[%clk 0:03:00]}  dxc4 {[%clk 0:02:59]} 4. e3 {[%clk 0:03:00]}  a6 {[%clk 0:03:00]} 5. Bxc4 {[%clk 0:02:59]}  b5 {[%clk 0:03:00]} 6. Be2 {[%clk 0:02:59]}  Bb7 {[%clk 0:03:01]} 7. O-O {[%clk 0:02:59]}  Nbd7 {[%clk 0:03:00]} 8. a4 {[%clk 0:02:59]}  b4 {[%clk 0:03:00]} 9. Nbd2 {[%clk 0:02:59]}  e6 {[%clk 0:03:00]} 10. a5 {[%clk 0:02:59]}  c5 {[%clk 0:03:00]} 11. Nc4 {[%clk 0:02:58]}  cxd4 {[%clk 0:02:57]} 12. Nxd4 {[%clk 0:02:58]}  Be7 {[%clk 0:02:55]} 13. Bf3 {[%clk 0:02:58]}  Qc7 {[%clk 0:02:54]} 14. Bxb7 {[%clk 0:02:57]}  Qxb7 {[%clk 0:02:55]} 15. Qf3 {[%clk 0:02:56]}  Qxf3 {[%clk 0:02:49]} 16. gxf3 {[%clk 0:02:55]}  Rc8 {[%clk 0:02:49]} 17. Nb6 {[%clk 0:02:54]}  Rc7 {[%clk 0:02:43]} 18. Bd2 {[%clk 0:02:52]}  Bc5 {[%clk 0:02:36]} 19. Rfc1 {[%clk 0:02:49]}  e5 {[%clk 0:02:26]} 20. Nf5 {[%clk 0:02:40]}  g6 {[%clk 0:02:22]} 21. Ng3 {[%clk 0:02:40]}  O-O {[%clk 0:02:10]} 22. Bxb4 {[%clk 0:02:38]}  Rb8 {[%clk 0:02:06]} 23. Bxc5 {[%clk 0:02:36]}  Rxc5 {[%clk 0:02:05]} 24. Rxc5 {[%clk 0:02:36]}  Nxc5 {[%clk 0:02:05]} 25. b4 {[%clk 0:02:36]}  Nd3 {[%clk 0:02:06]} 26. b5 {[%clk 0:02:31]}  axb5 {[%clk 0:01:56]} 27. a6 {[%clk 0:02:31]} 1-0


[Site "https://www.chess.com"]